Cogmind - Beta 16 @@@ ROGUE MODE // 2026.02.07 @ 21:30:59 Player: Arioch Result: Destroyed by 3W-OY4(j) with Overtuned Pulse Rifle Performance ------------- Evolutions (0) 0 Regions Visited (3) 600 Robots Destroyed (12) 60 Value Destroyed (442) 442 Prototype IDs (20) 400 Alien Tech Used (0) 0 Bonus (800) 800 TOTAL SCORE: 2302 Bonus ------- Registered with UFD 300 Met Optimus in HQ 500 Cogmind --------- Core Integrity 0/250 Matter 281/300 Energy 140/140 System Corruption 2% Temperature Warm (111) Movement Walking (120) Location -7/Scraptown Parts ------- > --- POWER (1) -------- Light Deuterium Engine > --- PROPULSION (2) --- Aluminum Leg Aluminum Leg > --- UTILITY (2) ------ Small Storage Unit A0-MCA's Component Scanner > --- WEAPON (2) ------- Minigun > --- INVENTORY (8) ---- Scrap Suit Improved Heat Sink Experimental Signal Interpreter Makeshift Hacking Suite Junk Cannon (0) Peak State ------------ > --- POWER ------------ Ion Engine > --- PROPULSION ------- Flexi-carbon Leg Armored Leg > --- UTILITY ---------- Small Storage Unit A0-MCA's Component Scanner > --- WEAPON ----------- Overtuned Pulse Rifle Minigun > --- INVENTORY -------- Aluminum Leg Aluminum Leg Scrap Suit Improved Heat Sink Experimental Signal Interpreter Junk Cannon [Rating: 30] Favorites ----------- Power Ion Engine Engine Ion Engine Propulsion Aluminum Leg Leg Aluminum Leg Utility Small Storage Unit Device Improved Terrain Scanner Storage Small Storage Unit Processor A0-MCA's Component Scanner Weapon Medium Laser Energy Gun Medium Laser Ballistic Gun Minigun Build | -11 -10 -10 -7 ------- Run | Yrd Mat Sub Scr Slots Evolved . | . . . . Power . | . . . . Propulsion . | . . . . Utility . | . . . . Weapon . | . . . . Parts Attached 23 | 8 . 3 12 Power 5 | 1 . 1 3 Engine 5 | 1 . 1 3 Core . | . . . . Reactor . | . . . . Propulsion 9 | 2 . 1 6 Treads . | . . . . Leg 9 | 2 . 1 6 Wheel . | . . . . Hover . | . . . . Flight . | . . . . Utility 3 | 2 . . 1 Device 1 | 1 . . . Storage 1 | 1 . . . Processor 1 | . . . 1 Hackware . | . . . . Protection . | . . . . Artifact . | . . . . Weapon 6 | 3 . 1 2 Energy Gun 3 | 2 . . 1 Energy Cannon . | . . . . Ballistic Gun 3 | 1 . 1 1 Ballistic Cannon . | . . . . Launcher . | . . . . Special Weapon . | . . . . Impact Weapon . | . . . . Slashing Weapon . | . . . . Piercing Weapon . | . . . . Special Melee Weapon . | . . . . Unidentified Prototypes . | . . . . Parts Lost 1 | . . . 1 Power . | . . . . Propulsion . | . . . . Utility . | . . . . Weapon 1 | . . . 1 Highest Loss Streak 1 | . . . 1 To Critical Strikes . | . . . . Average Backups 7 | 3 5 7 7 Power . | . 1 1 . Propulsion 2 | 1 3 2 1 Utility 3 | . . 2 4 Weapon 1 | . 1 1 1 Tool/Special . | . . . . Unused Backups 12 | . 2 . 10 Power . | . . . . Propulsion 2 | . 2 . . Utility 8 | . . . 8 Weapon 2 | . . . 2 Tool/Special . | . . . . Average Slot Usage (%) 99 | . 100 100 99 Engine 14 | . 14 14 14 Leg 27 | . 28 28 27 Device 10 | . 14 14 9 Storage 14 | . 14 14 14 Processor 3 | . . . 4 Energy Gun 14 | . 14 14 14 Ballistic Gun 14 | . 14 14 14 Peak Build Rating 30 | 9 9 12 30 Average Rating 17 | 5 9 10 20 On Entrance 7 | . 9 9 12 Avg Prop Armor Cover (%) 8 | . . . 8 Naked Turns . | . . . . Heaviest Build 17 | 14 14 17 17 Greatest Support 38 | 20 20 20 38 Greatest Overweight (x) 5 | 3 . . 5 Average Overweight (x) . | . . . . Largest Inventory Capacity 8 | 8 8 8 8 Average Capacity 7 | 7 8 8 8 Most Carried 8 | 5 8 8 8 Average Carried 7 | 3 6 7 7 Final Capacity 8 | 8 8 8 8 Final Carried 8 | 4 7 8 7 Class Distribution -------------------- 100% | Mutant Dominant Class ---------------- Mutant | -10/Materials Mutant | -10/Subcaves Mutant | -7/Scraptown Resources | -11 -10 -10 -7 ----------- Run | Yrd Mat Sub Scr Matter Collected 523 | 276 19 36 192 Remotely . | . . . . Salvage Created 620 | 80 92 57 391 Parts 28 | 2 1 2 23 Haulers Intercepted . | . . . . Recyclers Shooed . | . . . . Parts Field Recycled . | . . . . Retrieved Matter . | . . . . Parts Self-Destructed . | . . . . Prevented . | . . . . Parts Restored . | . . . . Kills | -11 -10 -10 -7 ------- Run | Yrd Mat Sub Scr Combat Hostiles Destroyed 10 | . 2 1 7 Guns 10 | . 2 1 7 Classes Destroyed 8 | 2 1 1 4 Tunneler 1 | 1 . . . Recycler 1 | 1 . . . Grunt 2 | . 2 . . Subdweller 1 | . . 1 . Federalist 1 | . . . 1 Explorer 1 | . . . 1 Guru 1 | . . . 1 Scrapper 4 | . . . 4 Best Kill Streak 2 | 1 2 1 2 Combat Bots Only 2 | . 2 1 2 Max Kills in Single Turn 1 | 1 1 1 1 Gunslinging . | . . . . Exploded . | . . . . Melee . | . . . . Uniques/NPCs Destroyed . | . . . . Combat | -11 -10 -10 -7 -------- Run | Yrd Mat Sub Scr Hostile Shots Fired 56 | . 11 7 38 Missed 19 | . 5 4 10 Hits 37 | . 6 3 28 Projectile 37 | . 6 3 28 Critical Strikes 3 | . . . 3 Damage Taken 710 | . 84 54 572 Core 262 | . 28 . 234 Absorbed by Shields . | . . . . Core Remaining (%) 100 | 100 . . . Volleys Fired 45 | 6 9 6 24 Largest 2 | 2 2 2 2 Hottest 105 | 70 70 70 105 Shots Fired 80 | 12 18 12 38 Gun 80 | 12 18 12 38 Cannon . | . . . . Launcher . | . . . . Special . | . . . . Kinetic 45 | 6 9 6 24 Thermal 35 | 6 9 6 14 Explosive . | . . . . Electromagnetic . | . . . . Robot Hit Streak 14 | 4 6 14 12 Robot Miss Streak 3 | 2 2 1 3 Penetration Max . | . . . . Secondary Targets . | . . . . Shots Hit Robots 53 | 8 12 11 22 Core Hits 26 | 3 5 3 15 Critical Kills . | . . . . Critical Parts Destroyed . | . . . . Critical Strikes 4 | 2 1 . 1 Burn 4 | 2 1 . 1 Melee Attacks . | . . . . Impact . | . . . . Slashing . | . . . . Piercing . | . . . . Sneak Attacks . | . . . . Combat Hostiles . | . . . . Follow-up Attacks . | . . . . Damage Inflicted 756 | 99 127 113 417 Guns 756 | 99 127 113 417 Cannons . | . . . . Explosions . | . . . . Melee . | . . . . Ramming . | . . . . Kinetic 345 | 34 39 50 222 Thermal 411 | 65 88 63 195 Explosive . | . . . . Electromagnetic . | . . . . Impact . | . . . . Slashing . | . . . . Piercing . | . . . . Highest Corruption 2 | . . . 2 Average Corruption 1 | . . . 1 Corruption Purged . | . . . . Corruption Blocked . | . . . . Effects 1 | . . . 1 Heat Flow Errors 1 | . . . 1 Overload Shots . | . . . . Overflow Damage . | . . . . Projectiles . | . . . . Explosions . | . . . . Melee . | . . . . Knockbacks . | . . . . Impact . | . . . . Kinetic . | . . . . Secondary . | . . . . Self-Inflicted Damage . | . . . . Shots . | . . . . Rammed . | . . . . Targets Rammed . | . . . . Kicked . | . . . . Crushed . | . . . . Highest Temperature 241 | 60 198 . 241 Average Temperature 82 | 27 97 . 88 Received Heat Transfer 393 | . 48 . 345 Siege Activations . | . . . . Martial Activations . | . . . . Shielding Activations . | . . . . Robots Disrupted . | . . . . Combat Hostiles . | . . . . Robots Corrupted . | . . . . Combat Hostiles . | . . . . Parts Fried . | . . . . Impact Corruptions . | . . . . Robots Melted . | . . . . Combat Hostiles . | . . . . Parts Melted 5 | 1 . . 4 Heat Transferred 1375 | 333 333 185 524 Parts Sabotaged . | . . . . Parts Stolen . | . . . . Parts Stripped . | . . . . Power Chain Reactions . | . . . . Alert | -11 -10 -10 -7 ------- Run | Yrd Mat Sub Scr Maximum Alert Level . | . . . . Low Security (%) 100 | 100 100 . . Level 1 . | . . . . Level 2 . | . . . . Level 3 . | . . . . Level 4 . | . . . . Level 5 . | . . . . High Security . | . . . . Max Security . | . . . . Peak Influence 40 | 5 40 . . Initial . | . . . . Average 6 | 1 9 . . Influence Increases 60 | 10 50 . . Destroy 0b10 Robot/C 40 | . 40 . . Destroy 0b10 Robot/NC 10 | 10 . . . Destroy Leader 10 | . 10 . . Influence Decreases 60 | 10 50 . . Time Decay 60 | 10 50 . . Squads Dispatched 1 | . 1 . . Investigation . | . . . . Extermination . | . . . . Reinforcement 1 | . 1 . . Assault . | . . . . Garrison . | . . . . Intercept . | . . . . Searches Triggered . | . . . . Construction Impeded . | . . . . Haulers Reinforced . | . . . . Active Scanning Responses . | . . . . Cargo Convoy Interrupts . | . . . . Stealth | -11 -10 -10 -7 --------- Run | Yrd Mat Sub Scr Distress Signals 3 | . 3 . . Communications Jammed . | . . . . Distress Signals . | . . . . Times Spotted 22 | . 3 1 18 Peak Tracking Total 7 | . 3 1 7 Tactical Retreats . | . . . . Traps | -11 -10 -10 -7 ------- Run | Yrd Mat Sub Scr Traps Triggered . | . . . . Indirectly . | . . . . Trap Hack Attempts . | . . . . Triggered . | . . . . Disarmed . | . . . . Reprogrammed . | . . . . Reused . | . . . . Traps Extracted . | . . . . Installed . | . . . . Triggered . | . . . . Machines | -11 -10 -10 -7 ---------- Run | Yrd Mat Sub Scr Machines Disabled 1 | . . . 1 Max in Single Turn 1 | . . . 1 Machines Repaired . | . . . . Machines Dismantled . | . . . . Machines Sabotaged . | . . . . Overloaded Fab Kills . | . . . . Hacking | -11 -10 -10 -7 --------- Run | Yrd Mat Sub Scr Machines Accessed 6 | . 1 . 5 Terminals 1 | . 1 . . Fabricators . | . . . . Repair Stations . | . . . . Recycling Units . | . . . . Scanalyzers . | . . . . Garrison Access . | . . . . Total Hacks 36 | . 1 . 35 Successful 36 | . 1 . 35 Failed . | . . . . Catastrophic . | . . . . Database Lockouts . | . . . . Manual 2 | . 2 . . Terminals 1 | . 1 . . Fabricators . | . . . . Repair Stations . | . . . . Recycling Units . | . . . . Scanalyzers . | . . . . Garrison Access . | . . . . Terminal Hacks 35 | . . . 35 Record 34 | . . . 34 Proto ID Catalog 1 | . . . 1 Fabricator Hacks . | . . . . Repair Station Hacks . | . . . . Recycling Unit Hacks . | . . . . Scanalyzer . | . . . . Garrison Access Hacks . | . . . . Unauthorized Hacks 1 | . 1 . . Terminals 1 | . 1 . . Botnet 1 | . 1 . . Fabricators . | . . . . Repair Stations . | . . . . Recycling Units . | . . . . Scanalyzers . | . . . . Garrison Access . | . . . . Data Cores Recovered . | . . . . Used . | . . . . Hacking Detections 1 | . 1 . . Full Trace Events . | . . . . Feedback Events . | . . . . Feedback Blocked . | . . . . Robot Schematics Acquired . | . . . . Robots Built . | . . . . Authchips . | . . . . Time . | . . . . Total Robot Build Rating . | . . . . Part Schematics Acquired . | . . . . Parts Built . | . . . . Authchips . | . . . . Time . | . . . . Total Part Build Rating . | . . . . Part Studies Acquired . | . . . . Parts Repaired . | . . . . Time . | . . . . Parts Recycled . | . . . . Recycled Matter . | . . . . Retrieved Matter . | . . . . Retrieved Components . | . . . . Parts Scanalyzed . | . . . . Part Schematics Acquired . | . . . . Parts Damaged . | . . . . Bothacking | -11 -10 -10 -7 ------------ Run | Yrd Mat Sub Scr Used RIF Installer . | . . . . Robots Hacked . | . . . . Non-combat . | . . . . Combat . | . . . . Robot Hacks Applied . | . . . . Relay Couplers Released . | . . . . Fabnet Peak Effective % . | . . . . Robots Rewired . | . . . . Allies Hacked . | . . . . Hacks Repelled . | . . . . Allies | -11 -10 -10 -7 -------- Run | Yrd Mat Sub Scr Total Allies . | . . . . Largest Group . | . . . . Highest-Rated Group . | . . . . Highest-Rated Ally . | . . . . Total Orders . | . . . . Ally Attacks . | . . . . Total Damage . | . . . . Kills . | . . . . Allies Corrupted . | . . . . Allies Melted 4 | . . . 4 Intel | -11 -10 -10 -7 ------- Run | Yrd Mat Sub Scr Active Infowar (turns) 1706 | 26 213 250 1217 Terrain 1706 | 26 213 250 1217 Robot Analysis Total . | . . . . Derelict Logs Recovered 2 | . . . 2 Drone Launches . | . . . . Drone Recoveries . | . . . . Exploration | -11 -10 -10 -7 ------------- Run | Yrd Mat Sub Scr Turns Passed 2416 | 125 213 250 1828 Spaces Moved 1823 | 75 152 186 1410 Core 10 | 9 . . 1 Treads . | . . . . Legs 1813 | 66 152 186 1409 Wheels . | . . . . Hover . | . . . . Flight . | . . . . Fastest Speed 50 | 50 120 120 100 Average Speed 119 | 123 120 120 119 Slowest Speed 300 | 200 120 120 300 Overloaded Moves . | . . . . Propulsion Burnouts . | . . . . Robots Hopped . | . . . . Potential Cave-ins . | . . . . Cave-ins Triggered . | . . . . Exploration Rate (%) 33 | 5 28 15 87 Regions Visited 3 Branch Regions 2 Pre-discovered Areas . | . . . . Known Exits Taken . | . . . . Unknown Exits Taken 3 | 1 1 1 . Scrap Searched 5 | . . . 5 Spaces Dug . | . . . . Terrain Destroyed . | . . . . Melee . | . . . . Projectile . | . . . . AOE . | . . . . Terrain Rammed . | . . . . Walls Destroyed . | . . . . Machines Disabled . | . . . . Actions | -11 -10 -10 -7 --------- Run | Yrd Mat Sub Scr Total 1990 | 93 167 203 1527 Wait 59 | . . 1 58 Move 1820 | 74 151 185 1410 Hop . | . . . . Pick Up 19 | 4 5 4 6 Fast Attach 11 | 7 . . 4 Attach 3 | 1 . 1 1 Detach 1 | 1 . . . Swap 9 | . . 2 7 Drop 23 | . 2 4 17 Fire 45 | 6 9 6 24 Melee . | . . . . Ram . | . . . . Kick . | . . . . Crush . | . . . . Escape Stasis . | . . . . Rewire . | . . . . Trap . | . . . . Miscellaneous . | . . . . Route ------- -11/Scrapyard -10/Materials -10/Subcaves -7/Scraptown (discovered 1 exit: [*Fac]) History --------- Turn | Location | Event 17 | -11/Scrapyard | Discovered new exit (range 15) 126 | -11/Scrapyard | Entered Materials 127 | -10/Materials | Met a group of wandering Federalists 326 | -10/Materials | Build established: Mutant 335 | -10/Materials | Discovered new exit (range 5) 339 | -10/Materials | Entered Subcaves 340 | -10/Subcaves | Continued accompanying wandering Federalists (5) 340 | -10/Subcaves | Approached by a straggling Scientist 385 | -10/Subcaves | A swath of the cavern ceiling suddenly collapsed 477 | -10/Subcaves | A swath of the cavern ceiling suddenly collapsed 567 | -10/Subcaves | Wandering Federalist uncovered a shortcut to Scraptown 589 | -10/Subcaves | Entered Scraptown 972 | -7/Scraptown | Visited UFD Registry 988 | -7/Scraptown | Visited IN-MT5's Study 1044 | -7/Scraptown | Visited The Evicted 1086 | -7/Scraptown | Visited Shadow of the Wyrm 1133 | -7/Scraptown | Scanned Subdweller tech in exchange for log data 1136 | -7/Scraptown | Learned location of 2 exits from Proximity Caves 1212 | -7/Scraptown | Discovered new exit (range 5) 1499 | -7/Scraptown | Visited Comm Corps 1546 | -7/Scraptown | Visited Awakened 1588 | -7/Scraptown | Visited Observation Area 1643 | -7/Scraptown | Visited Fellowship of the Rings 1683 | -7/Scraptown | Registered with UFD as "Tooldisc" 1714 | -7/Scraptown | Visited Curators Association 1758 | -7/Scraptown | Visited Junk Cannon Lab 1771 | -7/Scraptown | Found Prototype Special Weapon 1796 | -7/Scraptown | Visited A0-MCA Data Center 1803 | -7/Scraptown | Given a B+ rating by A0-MCA 1809 | -7/Scraptown | Found A0-MCA's Component Scanner 1810 | -7/Scraptown | Identified Junk Cannon 1901 | -7/Scraptown | Visited Science Guys 1953 | -7/Scraptown | Visited Infowarlord's Domain 1962 | -7/Scraptown | Found Exp. Signal Interpreter 2010 | -7/Scraptown | Met Optimus 2010 | -7/Scraptown | Accepted into 0bPrime 2099 | -7/Scraptown | Visited Scrapoid Pod Storage 2112 | -7/Scraptown | Visited LU-1G1's Boring Crew 2174 | -7/Scraptown | Civil war broke out across Scraptown 2205 | -7/Scraptown | Found Scrap Suit 2212 | -7/Scraptown | Core integrity fell below 50% 2245 | -7/Scraptown | Core integrity fell below 20% 2246 | -7/Scraptown | Lost 9 allies 2417 | -7/Scraptown | Destroyed by 3W-OY4(j) with Overtuned Pulse Rifle Last Messages --------------- 02343_ Acquired 4 matter. 02344_ YM-6UI(p) suffers critical hit (Burn). 02344_ Lgt. Deuterium Engine melted. 02344_ Imp. Hover Unit melted. 02344_ Mak. Hacking Suite melted. 02344_ YM-6UI(p) destroyed. 02345_ Acquired 4 matter. 02364_ Dropped Lgt. Deuterium Engine. 02365_ EF-VMF(g): "I knew Optimus was a traitor." 02365_ Dropped Ovr. Titanium Leg. 02368_ Acquired Mak. Hacking Suite. 02386_ System corrupted: Heat flow error (+134). 02397_ PL-Y5V(x) destroyed. 02397_ Machine disabled. 02400_ SO-BSQ(x) destroyed. 02401_ Acquired 18 matter. 02407_ Ovr. Pulse Rifle suddenly begins malfunctioning. 02412_ Ovr. Pulse Rifle destroyed. Map ----- +----------------------------------------------------+ | ??#??#"""""""#?????????????????????? "?????? | | ???#?" " "#?????????????????????? "?????? | | ??####" "#???????#?????????????#? "?????# | | ???# " ""#???????????? ???????# = ""????# | | ???# " """#????#??????? ???????[%! % ""?????# | | ?#?# " ""#??????#?????? ???????* = "?????# | | ???# " "#???????????? ???????? ??????? | | ???#""" "##?#??????????"""????????? ???????? | | ?#?# #?????????#???# #?????????# #???????? | | ##### ##########???????##### ########### ######### | | #????#??#"""" """""""" [%[""""""""" | | ##??????#" [%= [%! | | #???????#" = =! | | #???????#" | | #???????#" !![! [ | | # #### #???##### %[%! %= | | ""#?# #???#"""" =""""""""""""""""""" | | " "#?# #???#"""" """""""""""""""""""" | | ""### #???#"""" ""###### ########## | | "#?# #???#"""" = ""# ##??? | | "#?# ##?##""""!*= ""# X"#??? | | ""#?# ###?#""""% ""# "" "" ##??? | | ""#?# ""#"#""""= ""# "" "" X"#??? | | """#?# """"#"""" ""# " " ##### | | """#?# ""#######" "" "" | | """#?# ###?????#"@% "" "" | | ####?# ######### ""# " " ##### | | #????# *% ""# "" "" ""#??? | | ?????# / ""# "" "" ##??? | | #????# =* ""# X"#??? | | ??#?## ![!/ "# ##??# | | ###### !!%= ""###### ########## | | !* """""""""""""""""""" | | [j!% """""""""""""""""""" | | ![ =%! | | =![=! =* * | | =%![%= !%! [ | | ![#""""# [*! | | #""??#" [%= | | #???"#"""" " """"""""""" """"""" | | ######## ### ####????####### ########### ####### | | ?# # #?????"??#" "# #? | | ?# # #??#"?? ?##"" ""## #? | | ?# # #??? ?????#=" "&## ! #? | | ## # #??? "???##"" ""###"###" """#? | | ?# # #????????#" "#????#"! "#? | | ?# # #??#? ???##"" ""##????#" ""#? | | ?# # #???"?????#[" "&#?????#" ""#? | | ?# # #?????????#"" ""##????#" ""#? | | ?# # #????? ??#" """ "#????#" ""#? | +----------------------------------------------------+ Best States ------------- Heat Dissipation 25 Energy Generation 15 Energy Capacity 250 Matter Stores 300 Matter Capacity 300 Sight Range 16 Terrain Scan Range 16 Terrain Scan Density 10 Evasion (%) 55 Item Schematics ----------------- None Robot Schematics ------------------ None Fabricated ------------ Nothing Repaired ---------- Nothing Studied --------- None Alien Tech Used ----------------- None Achievements -------------- Civilization 2243 DATA ERROR: Steam Global Achievement% I Have A Map? Link The Feds Organ Harvest Strength In Numbers Wiki Contributor Challenges ------------ None Game ------ Seed PointyChipDevice Manual? 0 Play Time 00:41:01 Cumulative 65.7 hours Start 2026.02.07 @ 20:44:05 End 2026.02.07 @ 21:30:59 Sessions 1 Manual Loads 0 Difficulty Rogue Special Mode None Game No. 57 Rogue 57 Adventurer 0 Explorer 0 Win Type - Total 0 Types 0/0/0/0/0/0/0/0/0/0 Lore% 34 Gallery% 36 Achievement% 20 Wizard Run 0 Options --------- Layout 1 ASCII 0 Keyboard 0 Movement Numpad Keybinds 0 Fullscreen 1 Font 24/Smallcaps Map View 50x35 Zoom Use 0% Tactical HUD 1 Map Filters NONE Filters NONE Steam 1 RUN: dd4c96ba-65d9-433d-bd0b-f152d85fabdc